Cogmind - Beta 16 @@@ ROGUE MODE // 2025.10.26 @ 03:45:18 Player: Rocko1345 Result: Destroyed by G-34 Mercenary with Small Laser Performance ------------- Evolutions (1) 500 Regions Visited (2) 400 Robots Destroyed (34) 170 Value Destroyed (789) 789 Prototype IDs (2) 40 Alien Tech Used (0) 0 Bonus (0) 0 TOTAL SCORE: 1899 Bonus ------- None Cogmind --------- Core Integrity 0/400 Matter 300/300 Energy 160/160 System Corruption 0% Temperature Warm (160) Movement Walking (190) Ox1 Location -9/Materials Parts ------- > --- POWER (1) -------- Light Nuclear Core > --- PROPULSION (2) --- Carbon-fiber Leg Carbon-fiber Leg > --- UTILITY (4) ------ Large Storage Unit Structural Scanner Improved Targeting Computer > --- WEAPON (2) ------- Improved Medium Laser Improved Medium Laser > --- INVENTORY (15) --- Compact Battery (200) Faulty Improved EM Shotgun Advanced Beam Cannon Light Assault Rifle Light Assault Rifle Grenade Launcher Mini Grenade Launcher Datajack Peak State ------------ > --- POWER ------------ Light Nuclear Core > --- PROPULSION ------- Carbon-fiber Leg Carbon-fiber Leg > --- UTILITY ---------- Large Storage Unit Structural Scanner Improved Targeting Computer > --- WEAPON ----------- Improved Medium Laser Improved Medium Laser > --- INVENTORY -------- Compact Battery Improved EM Shotgun Advanced Beam Cannon Light Assault Rifle Light Assault Rifle Grenade Launcher Datajack [Rating: 20] Favorites ----------- Power Light Nuclear Core Engine Ion Engine Power Core Light Nuclear Core Propulsion Aluminum Leg Leg Aluminum Leg Flight Unit Improved Flight Unit Utility Medium Storage Unit Device Improved Heat Sink Storage Medium Storage Unit Processor Improved Targeting Computer Weapon Small Laser Energy Gun Small Laser Ballistic Gun Light Assault Rifle Launcher Grenade Launcher Special Weapon Mining Laser Special Melee Weapon Datajack Build | -11 -10 -9 ------- Run | Yrd Mat Mat Slots Evolved 2 | . . 2 Power . | . . . Propulsion . | . . . Utility 2 | . . 2 Weapon . | . . . Parts Attached 30 | 6 6 18 Power 4 | 1 1 2 Engine 2 | 1 1 . Core 2 | . . 2 Reactor . | . . . Propulsion 8 | 2 1 5 Treads . | . . . Leg 7 | 2 1 4 Wheel . | . . . Hover . | . . . Flight 1 | . . 1 Utility 7 | 1 2 4 Device 3 | . 1 2 Storage 3 | 1 1 1 Processor 1 | . . 1 Hackware . | . . . Protection . | . . . Artifact . | . . . Weapon 11 | 2 2 7 Energy Gun 5 | 2 1 2 Energy Cannon . | . . . Ballistic Gun 2 | . . 2 Ballistic Cannon . | . . . Launcher 1 | . . 1 Special Weapon 2 | . . 2 Impact Weapon . | . . . Slashing Weapon . | . . . Piercing Weapon . | . . . Special Melee Weapon 1 | . 1 . Unidentified Prototypes 2 | . . 2 Parts Lost 11 | . 2 9 Power 2 | . 1 1 Propulsion 3 | . 1 2 Utility 2 | . . 2 Weapon 4 | . . 4 Highest Loss Streak 5 | . 1 5 To Critical Strikes . | . . . Average Backups 4 | . 2 6 Power . | . . . Propulsion . | . . . Utility 1 | . . 1 Weapon 2 | . 1 3 Tool/Special . | . . . Unused Backups 4 | . . 4 Power . | . . . Propulsion . | . . . Utility 1 | . . 1 Weapon 3 | . . 3 Tool/Special . | . . . Average Slot Usage (%) 89 | . 94 85 Engine 7 | . 13 1 Core 5 | . . 9 Leg 24 | . 27 21 Device 10 | . 9 11 Storage 12 | . 14 11 Processor 5 | . . 10 Energy Gun 19 | . 26 13 Special Weapon 2 | . . 4 Peak Build Rating 20 | 6 9 20 Average Rating 12 | 4 7 17 On Entrance 5 | . 6 9 Avg Prop Armor Cover (%) . | . . . Naked Turns . | . . . Heaviest Build 32 | 11 19 32 Greatest Support 30 | 20 20 30 Greatest Overweight (x) 1 | . 1 1 Average Overweight (x) . | . . . Largest Inventory Capacity 15 | 8 10 15 Average Capacity 10 | 6 9 11 Most Carried 9 | . 5 9 Average Carried 4 | . 2 6 Final Capacity 15 | 8 10 15 Final Carried 8 | . 5 8 Class Distribution -------------------- 67% | Mutant 32% | Scavenger-Mutant Dominant Class ---------------- Scavenger-Mutant | -10/Materials Mutant | -9/Materials Resources | -11 -10 -9 ----------- Run | Yrd Mat Mat Matter Collected 632 | 219 106 307 Remotely . | . . . Salvage Created 923 | . 383 540 Parts 69 | . 29 40 Haulers Intercepted 2 | . . 2 Recyclers Shooed 2 | . 1 1 Parts Field Recycled . | . . . Retrieved Matter . | . . . Parts Self-Destructed . | . . . Prevented . | . . . Parts Restored . | . . . Kills | -11 -10 -9 ------- Run | Yrd Mat Mat Combat Hostiles Destroyed 26 | . 10 16 Guns 19 | . 10 9 Cannons 1 | . . 1 AOE 6 | . . 6 Classes Destroyed 10 | . 6 4 Builder 1 | . 1 . Hauler 2 | . . 2 Recycler 1 | . 1 . Mechanic 1 | . 1 . Operator 2 | . 2 . Watcher 1 | . . 1 Swarmer 10 | . 6 4 Grunt 12 | . 4 8 Duelist 1 | . . 1 Sentry 3 | . . 3 Best Kill Streak 4 | . 4 4 Combat Bots Only 4 | . 3 4 Max Kills in Single Turn 3 | . 2 3 Gunslinging 1 | . 1 . Exploded 3 | . . 3 Melee . | . . . Uniques/NPCs Destroyed . | . . . Combat | -11 -10 -9 -------- Run | Yrd Mat Mat Hostile Shots Fired 189 | . 37 152 Missed 59 | . 6 53 Hits 130 | . 31 99 Melee 3 | . . 3 Projectile 127 | . 31 96 Critical Strikes 5 | . . 5 Damage Taken 1693 | . 406 1287 Core 493 | . 88 405 Absorbed by Shields . | . . . Core Remaining (%) 82 | 100 64 . Volleys Fired 106 | . 42 64 Largest 2 | . 2 2 Hottest 200 | . 90 200 Shots Fired 189 | . 84 105 Gun 172 | . 84 88 Cannon . | . . . Launcher 11 | . . 11 Special 6 | . . 6 Kinetic 17 | . . 17 Thermal 161 | . 84 77 Explosive 11 | . . 11 Electromagnetic . | . . . Robot Hit Streak 16 | . 6 16 Robot Miss Streak 7 | . 7 3 Penetration Max . | . . . Secondary Targets 4 | . 2 2 Max Gunslinging Chain 1 | . 1 1 Shots Hit Robots 105 | . 43 62 Core Hits 64 | . 25 39 Critical Kills . | . . . Critical Parts Destroyed . | . . . Critical Strikes 5 | . 3 2 Burn 5 | . 3 2 Melee Attacks . | . . . Impact . | . . . Slashing . | . . . Piercing . | . . . Sneak Attacks . | . . . Combat Hostiles . | . . . Follow-up Attacks . | . . . Damage Inflicted 1659 | . 521 1138 Guns 1137 | . 521 616 Cannons . | . . . Explosions 474 | . . 474 Melee . | . . . Ramming . | . . . Kinetic 114 | . . 114 Thermal 1071 | . 521 550 Explosive 474 | . . 474 Electromagnetic . | . . . Impact . | . . . Slashing . | . . . Piercing . | . . . Highest Corruption 1 | . 1 . Average Corruption 1 | . 1 . Corruption Purged . | . . . Corruption Blocked . | . . . Overload Shots . | . . . Overflow Damage . | . . . Projectiles . | . . . Explosions . | . . . Melee . | . . . Knockbacks . | . . . Impact . | . . . Kinetic . | . . . Secondary . | . . . Self-Inflicted Damage 13 | . . 13 Shots 1 | . . 1 Rammed . | . . . Targets Rammed 1 | . . 1 Kicked 1 | . . 1 Crushed . | . . . Highest Temperature 173 | . 145 173 Average Temperature 61 | . 66 53 Received Heat Transfer 642 | . 159 483 Siege Activations . | . . . Martial Activations . | . . . Shielding Activations . | . . . Robots Disrupted . | . . . Combat Hostiles . | . . . Robots Corrupted . | . . . Combat Hostiles . | . . . Parts Fried . | . . . Impact Corruptions . | . . . Robots Melted . | . . . Combat Hostiles . | . . . Parts Melted 8 | . 5 3 Heat Transferred 3133 | . 1622 1511 Parts Sabotaged . | . . . Parts Stolen . | . . . Parts Stripped . | . . . Power Chain Reactions . | . . . Alert | -11 -10 -9 ------- Run | Yrd Mat Mat Maximum Alert Level 1 | . . 1 Low Security (%) 97 | 100 100 94 Level 1 2 | . . 5 Level 2 . | . . . Level 3 . | . . . Level 4 . | . . . Level 5 . | . . . High Security . | . . . Max Security . | . . . Peak Influence 210 | . 80 210 Initial . | . . . Average 63 | . 29 98 Influence Increases 800 | . 284 516 Destroy 0b10 Robot/C 520 | . 200 320 Destroy 0b10 Robot/NC 40 | . 25 15 Destroy Leader 116 | . 40 76 Successful Hack 42 | . 19 23 Disable Machine 15 | . . 15 Destroy Structure 37 | . . 37 Lose Combat Pursuer 30 | . . 30 Influence Decreases 685 | . 284 401 Time Decay 583 | . 264 319 Lost Part 102 | . 20 82 Squads Dispatched 4 | . 2 2 Investigation 3 | . 1 2 Extermination . | . . . Reinforcement 1 | . 1 . Assault . | . . . Garrison . | . . . Intercept . | . . . Searches Triggered . | . . . Construction Impeded . | . . . Haulers Reinforced . | . . . Active Scanning Responses . | . . . Cargo Convoy Interrupts . | . . . Stealth | -11 -10 -9 --------- Run | Yrd Mat Mat Distress Signals 2 | . 2 . Communications Jammed . | . . . Distress Signals . | . . . Times Spotted 45 | . 21 24 Peak Tracking Total 7 | . 5 7 Tactical Retreats 2 | . . 2 Traps | -11 -10 -9 ------- Run | Yrd Mat Mat Traps Triggered 2 | . 1 1 Indirectly . | . . . Trap Hack Attempts 17 | . 17 . Triggered . | . . . Disarmed 2 | . 2 . Reprogrammed . | . . . Reused . | . . . Traps Extracted . | . . . Installed . | . . . Triggered . | . . . Machines | -11 -10 -9 ---------- Run | Yrd Mat Mat Machines Disabled 1 | . . 1 Max in Single Turn 1 | . . 1 Machines Repaired . | . . . Machines Dismantled . | . . . Machines Sabotaged . | . . . Overloaded Fab Kills . | . . . Hacking | -11 -10 -9 --------- Run | Yrd Mat Mat Machines Accessed 8 | . 5 3 Terminals 7 | . 4 3 Fabricators . | . . . Repair Stations . | . . . Recycling Units 1 | . 1 . Scanalyzers . | . . . Garrison Access . | . . . Total Hacks 28 | . 16 12 Successful 14 | . 9 5 Failed 14 | . 7 7 Catastrophic 1 | . 1 . Database Lockouts . | . . . Manual 11 | . 5 6 Terminals 24 | . 12 12 Fabricators . | . . . Repair Stations . | . . . Recycling Units 4 | . 4 . Scanalyzers . | . . . Garrison Access . | . . . Terminal Hacks 8 | . 4 4 Branch Access Points 1 | . . 1 Locate Traps 3 | . 2 1 Maintenance Status 1 | . 1 . Hauler Manifests 2 | . 1 1 Registered Components 1 | . . 1 Fabricator Hacks . | . . . Repair Station Hacks . | . . . Recycling Unit Hacks 2 | . 2 . Report Inventory 1 | . 1 . Retrieve Components 1 | . 1 . Scanalyzer . | . . . Garrison Access Hacks . | . . . Unauthorized Hacks 4 | . 3 1 Terminals 3 | . 2 1 Botnet 3 | . 2 1 Fabricators . | . . . Repair Stations . | . . . Recycling Units 1 | . 1 . Monitor 1 | . 1 . Scanalyzers . | . . . Garrison Access . | . . . Data Cores Recovered . | . . . Used . | . . . Hacking Detections 7 | . 5 2 Full Trace Events 3 | . 2 1 Feedback Events . | . . . Feedback Blocked . | . . . Robot Schematics Acquired . | . . . Robots Built . | . . . Authchips . | . . . Time . | . . . Total Robot Build Rating . | . . . Part Schematics Acquired . | . . . Parts Built . | . . . Authchips . | . . . Time . | . . . Total Part Build Rating . | . . . Part Studies Acquired . | . . . Parts Repaired . | . . . Time . | . . . Parts Recycled . | . . . Recycled Matter . | . . . Retrieved Matter . | . . . Retrieved Components 9 | . 9 . Parts Scanalyzed . | . . . Part Schematics Acquired . | . . . Parts Damaged . | . . . Bothacking | -11 -10 -9 ------------ Run | Yrd Mat Mat Used RIF Installer . | . . . Robots Hacked . | . . . Non-combat . | . . . Combat . | . . . Robot Hacks Applied . | . . . Relay Couplers Released . | . . . Fabnet Peak Effective % . | . . . Robots Rewired . | . . . Allies Hacked . | . . . Hacks Repelled . | . . . Allies | -11 -10 -9 -------- Run | Yrd Mat Mat Total Allies . | . . . Largest Group . | . . . Highest-Rated Group . | . . . Highest-Rated Ally . | . . . Total Orders . | . . . Ally Attacks . | . . . Total Damage . | . . . Kills . | . . . Allies Corrupted . | . . . Allies Melted . | . . . Intel | -11 -10 -9 ------- Run | Yrd Mat Mat Active Infowar (turns) 531 | . . 531 Sensors 292 | . . 292 Structural 239 | . . 239 Robot Analysis Total . | . . . Derelict Logs Recovered . | . . . Drone Launches . | . . . Drone Recoveries . | . . . Exploration | -11 -10 -9 ------------- Run | Yrd Mat Mat Turns Passed 1712 | 52 793 867 Spaces Moved 893 | 40 461 392 Core 8 | 8 . . Treads . | . . . Legs 885 | 32 461 392 Wheels . | . . . Hover . | . . . Flight . | . . . Fastest Speed 50 | 50 120 120 Average Speed 133 | 106 121 150 Slowest Speed 190 | 120 190 190 Overloaded Moves . | . . . Propulsion Burnouts . | . . . Robots Hopped . | . . . Potential Cave-ins . | . . . Cave-ins Triggered . | . . . Exploration Rate (%) 30 | 3 55 34 Regions Visited 2 Branch Regions . Pre-discovered Areas . | . . . Known Exits Taken . | . . . Unknown Exits Taken 2 | 1 1 . Scrap Searched . | . . . Spaces Dug . | . . . Terrain Destroyed 41 | . . 41 Melee . | . . . Projectile 1 | . . 1 AOE 40 | . . 40 Terrain Rammed . | . . . Walls Destroyed . | . . . Machines Disabled . | . . . Actions | -11 -10 -9 --------- Run | Yrd Mat Mat Total 1204 | 46 606 552 Wait 133 | 1 73 59 Move 891 | 39 460 392 Hop . | . . . Pick Up 14 | . 5 9 Fast Attach 15 | 6 3 6 Attach 7 | . . 7 Detach 1 | . . 1 Swap 12 | . 4 8 Drop 7 | . 2 5 Fire 106 | . 42 64 Melee . | . . . Ram . | . . . Kick 1 | . . 1 Crush . | . . . Escape Stasis . | . . . Rewire . | . . . Trap 17 | . 17 . Miscellaneous . | . . . Route ------- -11/Scrapyard -10/Materials (discovered 3 exits: *Mat / [*Min x2]) -9/Materials (discovered 2 exits: [*Mat] / Min) History --------- Turn | Location | Event 5 | -11/Scrapyard | Discovered new exit (range 15) 53 | -11/Scrapyard | Entered Materials 470 | -10/Materials | Discovered new exit (range 12) 537 | -10/Materials | Discovered new exit (range 14) 602 | -10/Materials | Build established: Scavenger-Mutant 716 | -10/Materials | Discovered new exit (range 12) 753 | -10/Materials | Derelicts attacked the area 846 | -10/Materials | Entered another Materials area 846 | -9/Materials | Evolved 2 slots: Utility x2 1162 | -9/Materials | Build established: Mutant 1210 | -9/Materials | Core integrity fell below 50% 1218 | -9/Materials | Lost 5 parts (1p1n1u2w) 1287 | -9/Materials | Core integrity fell below 20% 1346 | -9/Materials | Identified exit to Mines 1617 | -9/Materials | Discovered new exit (range 15) 1713 | -9/Materials | Destroyed by G-34 Mercenary with Small Laser Last Messages --------------- 01431_ U-05 Engineer builds a Door. 01435_ K-01 Serf collects debris. 01488_ Acquired 10 matter. 01617_ EXIT=FOUND 01644_ Connecting with Terminal... >>Trojan(Botnet) Trojan loaded successfully. Testing... Terminal linked with 0 systems. Awaiting botnet instructions. 01667_ Acquired Mni. Grenade Launcher. 01687_ Triggered Alarm Trap. 01687_ An alarm sounds. 01687_ ALERT: Alarm triggered, dispatching investigation squad. 01690_ U-05 Engineer lays Concrete. 01691_ G-34 Mercenary destroyed. 01691_ Switching to secondary target: G-34 Mercenary. 01692_ U-05 Engineer lays Concrete. 01695_ U-05 Engineer builds a Door. 01705_ G-34 Mercenary suffers critical hit (Burn). Map ----- +----------------------------------------------------+ | | | | | | | | | | | | | | | | | | | | | | | | | | | ?????????????????????????#############???######### | | ?????????????????????????#############???######### | | ??????????????????######### ##?## | | ??????????????????######### """ """ ##?## | | ??????????????????## # """ """ ##?## """ """ | | ??????????????????## "" + """ """ ##?## """ """ | | ??????????????????## "T # ##?## """ """ | | ??????????????????## "" # ##?## """ """ | | ??????????????????## # ##?## | | ?????????????????### # ##### | | ?????????????????#####+########+#############+#### | | ?????????????????## | | ?????????????????##g<%[ @ | | ?????????????????## u | | ?????????????????#####+####### ###+####### ### | | ?????????????????## ##### # #### ### | | ?????????????????## ##?## # #### ##? | | ?????????????????## ##?## # #### ##? | | ?????????????????## ]##?## + #### ##? | | ?????????????????## ]]##?## # #### ##? | | ?????????????????## ##?## # #### ##? | | ?????????????????##+#######?### ############ ##? | | ?????????????????## #######?### ############ ##? | | ??????????????????# #????????## ??????????## ##? | | ??????????????????# #????????## ??????????## ##? | | ?????????????###### #????????## ??????????## ##? | | ????????###### ###??????## ??????###### ##? | | ????????# ! ###?????????????###### ##? | | ????????# ####### ??????##!! ##? | | ????????# # #?????##!! ##? | | ????????# ##????# #?????##!! ##? | | ????????# # ######+##????##!! ##? | | ????????# """ """ # # ## #????##== ## | | ????????# """ """ # # ### #????##== ### | | ????????# """ """ # ##?# """#????###### | | ????????########### = ##?#= """##???#######+#### | | ??????#########??## != #??# """####### # | +----------------------------------------------------+ Best States ------------- Heat Dissipation 42 Energy Generation 14 Energy Capacity 250 Matter Stores 300 Matter Capacity 300 Sight Range 16 Robot Scan Range 14 Terrain Scan Density 10 Evasion (%) 55 Targeting Accuracy 6 Item Schematics ----------------- None Robot Schematics ------------------ None Fabricated ------------ Nothing Repaired ---------- Nothing Studied --------- None Alien Tech Used ----------------- None Achievements -------------- None Challenges ------------ None Game ------ Seed FissionNuclearScanner Manual? 0 Play Time 00:21:39 Cumulative 200.6 hours Start 2025.10.26 @ 03:24:47 End 2025.10.26 @ 03:45:18 Sessions 1 Manual Loads 0 Difficulty Rogue Special Mode None Game No. 239 Rogue 65 Adventurer 174 Explorer 0 Win Type - Total 1 Types 1/0/0/0/0/0/0/0/0/0 Lore% 46 Gallery% 57 Achievement% 35 Wizard Run 0 Options --------- Layout 0 ASCII 0 Keyboard 1 Movement Numpad Keybinds 0 Fullscreen 1 Font 18/Terminus Map View 76x50 Zoom Use 0% Tactical HUD 1 Map Filters NONE Filters NONE Steam 1 RUN: cdc701ef-bf63-4f23-990e-f82efa692b14